bitfinex/quotes_ETHUSD_20240927
["timestamp","ask_amount","ask_price","bid_price","bid_amount"]
[1727418940344,3.74926,2667.2,2666.6,5.37238942]
[1727418941251,3.74926,2667.2,2666.6,5.44738411]
[1727418941419,3.74926,2667.2,2666.6,1.62237942]
[1727418941949,3.74926,2667.2,2666.6,5.37242942]
[1727418943122,3.74926,2667.2,2666.6,1.62237942]
[1727418943321,3.74926,2667.2,2666.8,0.55]
[1727418943951,2.73702283,2667.3,2666.8,0.55]
[1727418945118,3.74927,2667.2,2666.8,0.55]
[1727418945519,3.74927,2667.2,2666.7,0.55]
[1727418947570,2.73702283,2667.0,2666.7,0.55]
[1727418947867,2.73702283,2667.0,2666.4,2.01917777]
[1727418947868,2.73702283,2666.8,2666.4,0.7838]
[1727418948041,6.48685283,2666.8,2666.4,0.7838]
[1727418948237,2.73702283,2666.8,2666.4,4.53415]
[1727418948463,2.73702283,2666.8,2666.4,0.7838]
[1727418949263,2.73702283,2666.8,2666.5,0.55]
[1727418950052,6.48693283,2666.8,2666.5,0.55]
[1727418950329,6.48693283,2666.8,2666.2,7.34]
[1727418950330,3.75008,2666.7,2666.2,7.34]
[1727418950537,3.75008,2666.7,2666.3,0.55]
[1727418950965,2.73702283,2666.8,2666.3,0.55]
[1727418951265,3.74996,2666.7,2666.3,0.55]
[1727418952364,4.0,2666.6,2666.3,0.55]
[1727418956582,4.0,2666.6,2666.3,4.3005]
[1727418957547,4.0,2666.6,2666.5,0.55]
[1727418961198,4.0,2666.6,2666.3,4.30048]
[1727418962799,2.73702283,2666.5,2666.3,0.55]
[1727418963000,2.73702283,2666.5,2666.2,0.55]
[1727418963001,4.0,2666.4,2666.2,0.55]
[1727418963563,2.73702283,2666.3,2665.7,1.57660026]
[1727418963775,6.48797283,2666.0,2665.6,0.8142]
[1727418964067,2.73702283,2665.8,2665.3,0.8142]
[1727418964265,4.0,2665.7,2665.3,7.12230003]
[1727418964487,4.0,2665.7,2665.4,3.75176]
[1727418965602,4.0,2665.7,2665.5,0.55]
[1727418966496,4.0,2665.7,2665.4,3.55]
[1727418966691,4.0,2665.7,2664.8,5.78555225]
[1727418966692,2.73702283,2665.5,2665.0,1.22860807]
[1727418966860,4.0,2665.4,2665.0,1.22860807]
[1727418967065,4.0,2665.4,2665.3,3.75192]
[1727418967311,4.0,2665.4,2665.3,4.91673007]
[1727418967665,4.0,2665.4,2665.3,1.16481007]
[1727418967905,4.0,2665.4,2665.3,4.91673007]
[1727418968112,4.0,2665.4,2665.3,1.16481007]
[1727418968398,4.0,2665.4,2665.3,1.71481007]
[1727418968563,4.0,2665.4,2665.3,5.46673007]
[1727418969016,4.0,2665.4,2665.3,8.46673007]
[1727418969309,4.0,2665.4,2665.3,9.28093007]
[1727418969471,4.0,2665.4,2665.3,12.0179529]
[1727418969821,0.8233,2666.2,2665.6,3.75141]
[1727418969968,0.77679992,2668.1,2665.9,0.55]
[1727418969969,0.8233,2666.5,2665.9,0.55]
[1727418970308,4.0,2666.0,2665.9,0.55]
[1727418970513,0.8233,2666.5,2665.9,0.55]
[1727418970710,3.75038,2666.4,2665.9,0.55]
[1727418972577,0.8233,2666.3,2665.8,0.55]
[1727418973184,4.57391,2666.3,2665.8,0.55]
[1727418973378,3.75066,2666.2,2665.8,0.55]
[1727418973584,4.0,2665.9,2665.6,0.55]
[1727418975492,4.0,2665.9,2665.3,1.564602]
[1727418975493,3.75125,2665.8,2665.3,0.8142]
[1727418975695,4.0,2665.7,2665.3,0.8142]
[1727418975886,4.0,2665.7,2665.3,6.964623]
[1727418976282,4.0,2665.7,2665.4,3.0]
[1727418976820,4.0,2665.7,2665.4,0.55]
[1727418978399,4.0,2665.7,2665.3,0.55]
[1727418978795,4.0,2665.7,2665.1,0.55]
[1727418978796,4.5036,2665.6,2665.1,0.55]
[1727418979159,8.87571228,2665.5,2665.1,0.55]
[1727418979427,5.12406228,2665.5,2665.1,0.55]
[1727418980196,8.87580228,2665.5,2664.8,4.5611]
[1727418980525,7.75174,2665.5,2664.8,0.8085]
[1727418980695,3.75179,2665.4,2664.9,3.75246]
[1727418981015,4.0,2665.3,2664.9,3.75246]
[1727418981521,4.0,2665.3,2665.0,0.55]
[1727418981820,4.0,2665.3,2664.9,0.55]
[1727418982828,4.0,2665.3,2664.3,1.86592525]
[1727418982829,3.12,2665.2,2664.3,1.86592525]
[1727418982996,5.73702283,2665.0,2663.2,1.82525645]
[1727418983190,0.12,2665.2,2662.6,2.48242837]
[1727418983191,3.7527,2664.8,2662.7,1.82575749]
[1727418983384,0.55,2665.2,2663.0,1.87988092]
[1727418983583,2.73702283,2664.0,2663.8,1.82166364]
[1727418983823,3.75367,2664.1,2663.8,1.82166364]
[1727418984125,4.129137,2664.0,2663.8,1.82166364]
[1727418984322,6.49038283,2664.3,2663.8,1.82166364]
[1727418984510,2.73702283,2664.3,2663.8,1.82166364]
[1727418984824,3.75373,2664.1,2663.8,1.82166364]
[1727418985193,3.0,2665.5,2663.6,1.82255264]
[1727418985387,1e-08,2665.0,2663.5,1.85832515]
[1727418985584,2.73702283,2664.8,2663.5,0.55]
[1727418985913,1e-08,2665.3,2663.6,0.52360087]
[1727418985914,0.752,2664.3,2663.6,0.52360087]
[1727418986823,0.752,2664.3,2663.5,0.55]
[1727418987027,0.752,2664.3,2663.6,2.73702283]
[1727418987187,0.752,2664.3,2663.7,0.87870228]
[1727418995358,0.752,2664.3,2663.7,4.63285228]
[1727418995770,0.752,2664.3,2663.7,0.87870228]
[1727418997655,0.752,2664.3,2663.6,2.73702283]
[1727418997845,0.752,2664.3,2663.6,0.55]
[1727418999246,0.752,2664.3,2663.6,4.30429]
[1727419000638,0.752,2664.3,2663.6,0.55]
[1727419000870,0.752,2664.3,2663.6,1.280443]
[1727419001750,0.752,2664.3,2663.6,5.034743]
[1727419002336,0.752,2664.3,2663.6,5.034703]
[1727419002537,0.752,2664.3,2663.7,0.8292]
[1727419002750,0.752,2664.3,2663.8,0.55]
[1727419003077,0.752,2664.3,2663.8,1.41008058]
[1727419004573,0.752,2664.3,2663.9,2.73702283]
[1727419004772,0.784,2665.0,2664.1,0.8292]
[1727419005281,4.0,2664.2,2664.1,5.13281]
[1727419005581,4.0,2664.2,2664.1,8.13281]
[1727419005944,0.784,2665.3,2664.3,3.75325]
[1727419006183,0.784,2665.3,2664.4,0.55]
[1727419006879,4.53592,2665.3,2664.4,0.55]
[1727419007174,0.453592,2665.2,2664.4,0.55]
[1727419008950,0.453592,2665.2,2664.3,0.55]
[1727419008951,4.205762,2665.2,2664.3,0.55]
[1727419009290,4.53643,2665.0,2664.1,0.8292]
[1727419009457,0.828872,2664.9,2664.1,0.8292]
[1727419011181,4.0,2664.4,2663.8,3.8292]
[1727419011389,4.0,2664.4,2663.8,7.58313]
[1727419011586,4.0,2664.4,2663.9,3.75389]
[1727419011805,4.0,2664.4,2663.9,4.887614]
[1727419012386,4.0,2664.4,2664.1,0.55]
[1727419012690,0.828872,2664.9,2664.1,0.55]
[1727419012875,0.828872,2664.9,2664.1,4.30359]
[1727419013077,0.828872,2664.9,2664.1,0.55]
[1727419013479,0.828872,2664.9,2664.1,4.30356]
[1727419013785,0.828872,2664.9,2664.1,0.55]
[1727419013992,0.828872,2664.9,2664.1,4.3036]
[1727419014189,0.828872,2664.9,2664.1,0.55]
[1727419015258,0.828872,2664.9,2664.1,1.0937364]
[1727419015455,0.828872,2664.9,2664.1,0.55]
[1727419017093,0.828872,2664.9,2664.1,4.30352]
[1727419017255,0.784,2665.0,2664.3,0.55]
[1727419018059,0.784,2665.0,2664.3,4.30331]
[1727419018589,0.784,2665.0,2664.3,0.55]
[1727419019889,0.784,2665.0,2664.3,4.30322]
[1727419020101,3.784,2665.4,2664.4,4.58237]
[1727419020285,5.189168,2665.4,2664.4,4.58237]
[1727419020800,5.189168,2665.4,2664.4,0.8292]
[1727419021970,5.189168,2665.4,2664.5,0.55]
[1727419022165,0.784,2665.4,2664.6,3.75278]
[1727419022379,0.8249,2665.7,2664.8,0.55]
[1727419022583,4.0,2664.9,2664.8,0.55]
[1727419022786,4.0,2664.9,2664.8,1.443921]
[1727419023017,4.0,2664.9,2664.8,5.196541]
[1727419023165,0.8249,2665.7,2664.8,5.196541]
[1727419023371,0.8249,2666.0,2665.2,0.55]
[1727419023570,0.457573,2665.9,2665.2,0.55]
[1727419024210,0.457573,2665.9,2665.2,4.30194]
[1727419024370,0.8249,2666.0,2665.2,4.30194]
[1727419024766,3.75024,2666.5,2665.4,0.55]
[1727419024767,0.8249,2666.4,2665.4,0.55]
[1727419024969,0.8249,2666.4,2665.5,0.8837]
[1727419025269,4.208024,2666.3,2665.5,0.8837]
[1727419025973,0.457514,2666.3,2665.5,0.8837]
[1727419026979,0.457514,2666.3,2665.6,0.55]
[1727419027306,0.8249,2666.7,2665.8,4.30118]
[1727419027470,0.8249,2666.7,2666.0,0.55]
[1727419028580,0.8249,2666.7,2665.9,0.8837]
[1727419029185,4.57495,2666.7,2665.9,0.8837]
[1727419029391,4.582609,2666.6,2665.9,0.8837]
[1727419029995,3.75023,2666.5,2665.9,0.8837]
[1727419030212,3.75023,2666.5,2665.5,3.0]
[1727419030213,3.75023,2666.5,2665.6,1.4337]
[1727419030509,4.582609,2666.6,2665.6,0.8837]
[1727419030510,3.75038,2666.4,2665.6,0.8837]
[1727419035876,0.5407509,2666.5,2665.6,0.8837]
[1727419036076,4.2910109,2666.5,2665.6,0.8837]
[1727419036509,3.7504,2666.4,2665.6,0.8837]
[1727419036871,0.5407509,2666.5,2665.6,0.8837]
[1727419037076,0.42908809,2666.4,2665.6,0.8837]
[1727419038587,4.17945809,2666.4,2665.6,0.8837]
[1727419038980,0.42908809,2666.4,2665.6,0.8837]
[1727419040613,4.0,2666.0,2665.6,0.8837]
[1727419044107,4.0,2666.0,2665.6,4.6352]
[1727419045637,0.42908809,2666.4,2665.6,4.6352]
[1727419045833,0.42908809,2666.4,2665.7,3.75135]
[1727419046136,0.8249,2666.7,2665.8,0.8824]
[1727419046438,3.8505,2666.9,2666.1,0.55]
[1727419046615,3.8505,2666.9,2666.1,1.068332]
[1727419046932,7.60025,2666.9,2666.1,0.55]
[1727419047807,7.49985,2666.8,2666.0,0.8824]
[1727419048326,3.75002,2666.7,2666.0,0.8824]
[1727419048522,0.749992,2666.6,2666.0,0.8824]
[1727419048727,4.0,2666.1,2666.0,0.8824]
[1727419052345,4.0,2666.1,2665.9,1.3941]
[1727419056022,4.0,2666.1,2665.9,0.8441]
[1727419056240,4.4,2666.1,2665.9,0.8441]
[1727419056622,4.4,2666.1,2665.6,0.8441]
[1727419057131,0.4,2666.1,2665.6,0.8441]
[1727419057347,3.75038,2666.4,2665.6,0.8441]
[1727419058245,0.8711,2666.5,2665.6,0.8441]
[1727419058444,4.62135,2666.5,2665.6,0.8441]
[1727419060248,4.0,2666.0,2665.6,4.59557]
[1727419062218,4.0,2666.0,2665.6,8.34698]
[1727419062421,4.0,2666.0,2665.6,8.34692]
[1727419062619,4.0,2666.0,2665.7,3.75129]
[1727419063048,4.0,2666.0,2665.6,4.59551]
[1727419063218,4.0,2666.0,2665.6,8.34692]
[1727419063643,4.0,2666.0,2665.6,5.730202]
[1727419063842,4.0,2666.0,2665.8,3.75121]
[1727419065055,4.0,2666.0,2665.9,8.86204443]
[1727419065258,4.0,2666.0,2665.9,9.41204443]
[1727419065460,4.0,2666.0,2665.9,9.90208697]
[1727419066261,0.8711,2667.5,2666.9,0.8441]
[1727419066553,0.8711,2667.5,2666.9,4.59373]
[1727419067050,0.8711,2667.5,2666.9,0.8441]
[1727419067256,0.8711,2667.5,2666.7,4.59395]
[1727419068563,0.8711,2667.5,2666.7,0.8441]
[1727419068769,0.8711,2667.5,2666.7,4.59402]
[1727419069853,0.8711,2667.5,2666.7,0.8441]
[1727419070057,0.8711,2667.5,2666.7,4.59402]
[1727419070271,1.333066,2667.5,2666.7,4.59402]
[1727419071162,1.333066,2667.5,2666.7,0.8441]
[1727419072361,1.333066,2667.5,2666.7,4.594]
[1727419072872,1.333066,2667.5,2666.8,3.7498]
[1727419073527,0.8711,2667.5,2666.8,7.4995]
[1727419073945,0.8711,2667.5,2666.9,3.74966]
[1727419074665,0.8711,2667.5,2666.8,3.7497]
[1727419074865,0.8711,2667.5,2666.8,7.49942]
[1727419075372,0.8711,2667.5,2666.9,3.74965]
[1727419075932,0.8711,2667.5,2666.8,3.7497]
[1727419076254,0.8711,2667.7,2667.0,3.74951]
[1727419076958,0.8711,2667.7,2667.1,0.8441]
[1727419077267,4.0,2667.2,2667.1,4.59349]
[1727419079136,0.8711,2667.9,2667.3,3.74901]
[1727419079339,4.0,2667.4,2667.3,3.74901]
[1727419080146,0.8711,2667.9,2667.3,3.74901]
[1727419080551,0.8711,2667.9,2667.2,3.74922]
[1727419080864,0.8711,2667.9,2667.2,4.583491]
[1727419081474,0.8711,2667.9,2667.2,0.834271]
[1727419082148,0.8711,2667.9,2667.2,4.583411]
[1727419082875,0.8711,2667.9,2667.2,0.834271]
[1727419083093,3.74863,2667.7,2666.8,5.01798]
[1727419083396,0.8244,2667.6,2666.9,3.74958]
[1727419083697,4.0,2667.3,2667.0,0.455838]
[1727419084495,4.0,2667.3,2666.8,4.55859]
[1727419085083,4.0,2667.3,2666.9,3.74962]
[1727419086256,0.8244,2667.6,2666.9,3.74962]
[1727419086991,0.8244,2667.6,2666.8,0.8088]
[1727419087175,0.8244,2667.4,2666.6,3.0]
[1727419087795,4.5734,2667.4,2666.6,3.0]
[1727419088173,4.5734,2667.4,2666.6,6.75009]
[1727419088379,0.8244,2667.4,2666.6,6.75009]
[1727419088777,4.57337,2667.4,2666.6,6.75009]
[1727419088968,5.405584,2667.4,2666.6,6.75009]
[1727419089167,1.656614,2667.4,2666.6,6.75009]
[1727419089368,4.0,2667.1,2666.6,6.75009]
[1727419090168,3.74971,2666.9,2666.2,0.8088]
[1727419090495,7.74983,2666.8,2666.0,3.75089]
[1727419090707,4.0,2666.8,2666.0,3.75089]
[1727419090909,4.0,2666.8,2665.9,0.8088]
[1727419091072,1.30684,2666.7,2665.8,3.75118]
[1727419091277,1.30684,2666.7,2666.0,3.75092]
[1727419091572,4.0,2666.6,2666.0,3.75092]
[1727419094356,4.0,2666.6,2666.1,3.75079]
[1727419094522,4.0,2666.6,2666.0,3.75084]
[1727419096989,4.0,2666.6,2666.0,7.50167]
[1727419097190,4.0,2666.6,2666.0,3.75083]
[1727419097490,4.0,2666.6,2666.0,7.50166]
[1727419097827,4.0,2666.6,2666.0,8.551826]
[1727419098127,4.0,2666.6,2666.1,3.75074]
[1727419098727,4.0,2666.6,2666.1,3.75079]
[1727419098930,4.0,2666.6,2666.2,3.75064]
[1727419099831,4.0,2666.6,2666.0,4.800996]
[1727419100033,4.0,2666.6,2666.2,3.75064]
[1727419101221,4.0,2666.6,2666.0,4.800996]
[1727419101597,4.0,2666.6,2666.1,3.75074]
[1727419103728,4.0,2666.6,2666.3,3.75047]
[1727419105645,0.83,2666.2,2665.3,0.8823]
[1727419105810,4.0,2666.6,2665.2,3.81733171]
[1727419105811,3.75089,2666.1,2665.2,3.81733171]
[1727419106010,8.58102,2666.0,2665.3,0.38173317]
[1727419106513,4.83,2666.0,2665.3,0.38173317]
[1727419106903,4.83,2666.0,2665.3,4.13364317]
[1727419107234,0.83,2665.8,2664.9,0.8823]
[1727419107530,4.0,2665.7,2665.0,3.75223]
[1727419108028,4.0,2665.7,2665.1,3.75213]
[1727419108233,4.0,2665.7,2665.2,0.750436]
[1727419108736,4.0,2665.7,2665.0,3.75222]
[1727419109372,4.0,2665.7,2665.0,7.50447]
[1727419109530,0.83,2665.8,2665.1,3.7522]
[1727419110208,0.83,2665.8,2665.0,3.75222]
[1727419110410,0.83,2665.8,2665.0,7.50444]
[1727419110619,0.83,2665.8,2665.1,0.838674]
[1727419110941,4.0,2665.6,2665.1,0.838674]
[1727419111341,4.0,2665.6,2665.1,4.590824]
[1727419111636,4.0,2665.6,2665.1,0.838674]
[1727419116429,0.8411,2665.3,2664.5,3.75296]
[1727419116634,3.75264,2664.8,2664.2,0.06535103]
[1727419116944,0.8411,2664.7,2664.2,0.06535103]
[1727419117147,0.8411,2664.7,2664.0,4.58945]
[1727419117644,4.0,2664.6,2664.0,4.58945]
[1727419118053,4.0,2664.6,2664.0,3.75365]
[1727419118221,3.75321,2664.4,2663.7,0.8358]
[1727419118546,0.8411,2664.5,2663.8,3.75402]
[1727419118547,4.59416,2664.5,2663.8,3.75402]
[1727419118745,4.0,2664.3,2663.8,3.75402]
[1727419119244,4.0,2664.3,2663.7,3.75416]
[1727419119445,4.0,2664.3,2663.8,3.0]
[1727419119655,4.0,2664.3,2663.8,3.75401]
[1727419120312,4.0,2664.3,2663.8,7.50794]
[1727419120513,4.0,2664.3,2663.8,3.75393]
[1727419121979,4.0,2664.3,2663.9,3.75381]
[1727419122174,4.0,2664.3,2663.9,4.8880257]
[1727419122474,4.0,2664.3,2663.9,1.1342157]
[1727419122651,4.0,2664.3,2664.0,3.75375]
[1727419122975,4.0,2664.3,2663.9,1.1342157]
[1727419122976,4.0,2664.3,2663.9,4.8880557]
[1727419123136,4.0,2664.3,2663.9,1.1342157]
[1727419123340,4.0,2664.3,2664.0,3.75366]
[1727419124572,4.0,2664.3,2664.0,4.61784057]
[1727419124972,4.0,2664.3,2664.0,0.86418057]
[1727419125342,4.0,2664.3,2663.9,3.75389]
[1727419126275,4.0,2664.3,2663.8,3.75393]
[1727419126482,4.0,2664.3,2663.8,7.50786]
[1727419126772,4.0,2664.3,2663.9,3.75384]
[1727419127338,0.8411,2664.5,2663.9,3.75384]
[1727419127540,0.8411,2664.5,2663.9,4.804617]
[1727419128154,0.8411,2664.5,2663.9,1.050777]
[1727419128795,0.8411,2664.5,2663.9,4.804657]
[1727419130082,0.8411,2664.5,2664.1,3.75358]
[1727419132556,0.8411,2664.5,2664.1,3.75351]
[1727419132754,0.8411,2664.5,2664.2,0.430351]
[1727419132956,0.8411,2664.8,2664.4,3.75309]
[1727419133491,0.8411,2664.8,2664.3,3.7532]
[1727419140001,0.8411,2664.8,2664.2,0.55]
[1727419140365,0.8411,2664.8,2664.2,4.3034]
[1727419140994,0.8411,2664.8,2664.2,5.109088]
[1727419141371,0.8411,2664.8,2664.2,1.355688]
[1727419141584,4.59381,2664.8,2664.2,0.55]
[1727419141779,4.62182,2664.6,2664.1,0.55]
[1727419142497,0.8689,2664.6,2664.1,0.55]
[1727419142692,0.8689,2664.6,2664.1,5.409265]
[1727419143001,0.8689,2664.6,2664.2,3.75343]
[1727419143887,0.8689,2664.6,2664.1,6.227565]
[1727419143888,0.8689,2664.6,2664.3,3.75323]
[1727419144094,3.7521,2665.2,2664.5,3.75304]
[1727419144095,0.8689,2665.1,2664.5,3.75304]
[1727419144297,0.8689,2665.1,2664.6,0.375304]
[1727419144497,0.8689,2665.1,2664.5,3.75295]
[1727419144870,0.8689,2665.1,2664.1,2.474045]
[1727419144871,3.75224,2665.1,2664.3,3.75323]
[1727419145070,0.8689,2665.0,2664.1,5.12183]
[1727419145376,3.75251,2664.9,2664.2,0.512183]
[1727419145561,3.75251,2664.9,2664.1,5.12181]
[1727419145966,0.8689,2664.8,2664.2,3.75345]
[1727419146710,0.8689,2664.8,2664.1,5.12181]
[1727419147404,0.8689,2664.8,2664.1,4.30351]
[1727419147616,0.8689,2664.8,2664.1,8.057]
[1727419147617,1.331041,2664.8,2664.1,8.057]
[1727419147767,1.331041,2664.8,2664.2,3.75344]
[1727419148179,1.331041,2664.8,2664.3,3.75332]
[1727419148408,0.8689,2664.8,2664.3,3.75332]
[1727419150712,0.8689,2664.8,2664.4,3.75316]
[1727419151094,0.8689,2664.8,2664.3,3.75332]
[1727419151496,0.8689,2664.8,2664.4,3.75316]
[1727419151693,0.8689,2664.8,2664.6,3.75286]
[1727419151921,3.75198,2665.3,2664.6,3.75286]
[1727419151922,0.8689,2665.2,2664.6,3.75286]
[1727419152219,0.8689,2665.2,2664.6,7.50568]
[1727419152517,0.8689,2665.2,2664.7,3.75267]
[1727419152996,0.8689,2665.2,2664.6,3.75282]
[1727419153316,0.8689,2665.2,2664.6,4.128102]
[1727419153882,0.8689,2665.2,2664.6,4.128062]
[1727419154091,0.8689,2665.2,2664.7,3.7527]
[1727419155397,0.8689,2665.2,2664.7,3.75275]
[1727419155920,0.8689,2665.2,2664.6,4.128062]
[1727419156328,0.8689,2665.2,2664.7,4.1655362]
[1727419156616,0.8689,2665.2,2664.7,0.4128062]
[1727419156816,0.8689,2665.2,2664.6,4.128052]
[1727419157306,0.8689,2665.2,2664.6,7.880842]
[1727419157625,0.8689,2665.2,2664.6,4.128052]
[1727419157788,0.8689,2665.2,2664.6,3.75277]
[1727419157985,0.8689,2665.2,2664.7,3.75268]
[1727419158713,0.8689,2665.2,2664.6,3.75277]
[1727419159219,0.8689,2665.2,2664.7,3.75265]
[1727419159542,0.8689,2665.2,2664.8,3.75261]
[1727419161651,0.8689,2665.2,2664.6,4.128047]
[1727419161857,0.8689,2665.2,2664.7,3.75271]
[1727419162355,0.8689,2665.2,2664.6,7.880847]
[1727419162559,0.8689,2665.2,2664.7,3.75274]
[1727419163548,0.8689,2665.2,2664.8,3.7526]
[1727419164448,0.8689,2665.2,2664.9,3.75246]
[1727419164819,0.8689,2665.2,2664.8,3.7526]
[1727419165347,0.8689,2665.2,2664.8,7.5051]
[1727419166047,0.8689,2665.2,2664.8,3.7525]
[1727419166252,0.8689,2665.2,2664.9,3.75245]
[1727419166428,0.8689,2665.2,2664.8,4.6236217]
[1727419166747,0.8689,2665.2,2664.8,8.3761417]
[1727419167111,0.8689,2665.2,2664.8,4.6236217]
[1727419168842,0.8689,2665.2,2664.8,8.3761517]
[1727419169037,0.8689,2665.2,2664.8,4.6236217]
[1727419169423,0.8689,2665.2,2664.8,0.8711217]
[1727419169662,6.75112,2665.9,2664.5,3.0]
[1727419169663,3.7523,2665.1,2664.5,3.0]
[1727419169824,0.8544,2665.0,2664.5,3.75293]
[1727419170019,0.8544,2665.0,2664.4,6.75317]
[1727419170322,4.60675,2665.0,2664.4,3.0]
[1727419170521,5.480178,2665.0,2664.4,6.75318]
[1727419171132,1.727828,2665.0,2664.4,6.75318]
[1727419172153,0.83,2664.9,2664.4,3.75318]
[1727419173319,0.83,2664.9,2664.3,3.75327]
[1727419173956,0.83,2664.9,2664.4,3.75317]
[1727419176023,0.83,2664.9,2664.5,3.75303]
[1727419177954,0.83,2664.9,2664.5,3.75292]
[1727419178171,0.83,2664.9,2664.7,3.75266]
[1727419179450,0.83,2664.9,2664.5,0.375303]
[1727419179758,0.83,2665.5,2664.9,3.75244]
[1727419181560,0.83,2665.5,2664.5,0.375303]
[1727419181764,0.83,2665.5,2665.0,3.75221]
[1727419182065,0.83,2665.5,2665.0,7.50442]
[1727419182632,0.83,2665.5,2665.0,7.50447]
[1727419182863,0.83,2665.5,2665.1,3.7522]
[1727419183170,0.83,2665.5,2664.6,3.0]
[1727419183171,0.83,2665.3,2664.6,3.8847]
[1727419183340,0.83,2665.3,2664.6,3.75283]
[1727419183540,0.83,2665.3,2664.0,16.760947]
[1727419183541,3.75235,2665.0,2664.0,3.75365]
[1727419183744,0.83,2664.9,2664.2,3.75336]
[1727419183953,0.83,2664.9,2664.2,4.128696]
[1727419184131,3.75117,2665.9,2664.0,3.75371]
[1727419184132,4.58278,2664.7,2664.0,3.75371]
[1727419185470,4.58278,2664.7,2664.0,3.75365]
[1727419186675,4.58278,2664.7,2664.0,7.50729]
[1727419186827,4.58278,2664.7,2664.0,4.968239]
[1727419187025,4.58278,2664.7,2664.0,3.75364]
[1727419187452,4.58278,2664.7,2664.1,3.75351]
[1727419188739,0.83,2664.7,2664.6,3.7529]
[1727419188935,3.75167,2665.5,2664.7,3.75276]
[1727419189238,0.83,2665.4,2664.7,3.75276]
[1727419189637,0.83,2665.4,2664.8,3.75258]
[1727419190175,4.58183,2665.4,2664.7,3.75276]
[1727419190359,0.83,2665.4,2664.7,3.75276]
[1727419191451,3.75195,2665.3,2664.7,3.75276]
[1727419191867,0.83,2665.2,2664.7,3.75276]
[1727419192166,0.83,2665.2,2664.7,4.50334]
[1727419199292,0.83,2665.2,2664.7,3.75276]
[1727419200502,0.83,2665.5,2664.3,6.75322]
[1727419200699,3.75245,2665.0,2664.4,3.75307]
[1727419200903,4.63301,2665.1,2664.4,3.75307]
[1727419201087,3.75235,2665.0,2664.4,5.626189]
[1727419201676,0.8808,2664.9,2664.4,5.626189]
[1727419202208,0.8808,2664.9,2664.2,3.75342]
[1727419202365,4.63351,2664.8,2664.2,3.75342]
[1727419203088,0.8808,2664.8,2664.2,3.75342]
[1727419204313,3.75285,2664.7,2664.0,3.75368]
[1727419204612,3.75285,2664.7,2664.2,3.75347]
[1727419204613,0.8808,2664.6,2664.2,3.75347]
[1727419205388,0.8808,2664.6,2664.1,3.75359]
[1727419206396,0.8808,2664.6,2664.0,3.75368]
[1727419206601,0.8808,2664.6,2664.1,3.75358]
[1727419207079,0.8808,2664.6,2664.2,3.75344]
[1727419207799,0.8808,2664.4,2663.9,3.0]
[1727419208318,0.8808,2664.4,2663.8,3.75391]
[1727419208319,4.63402,2664.4,2663.8,3.75391]
[1727419208818,0.8808,2664.4,2663.8,7.50785]
[1727419209113,0.8808,2664.4,2663.8,3.75391]
[1727419209294,0.8808,2664.4,2663.8,7.50784]
[1727419209815,0.8808,2664.4,2663.9,3.75383]
[1727419210014,0.8808,2664.4,2663.8,3.75391]
[1727419210321,0.8808,2664.4,2663.9,3.75386]
[1727419210623,4.63399,2664.4,2663.8,3.75391]
[1727419211313,0.8808,2664.3,2663.8,3.75391]
[1727419211493,1.719505,2664.3,2663.8,3.75391]
[1727419211694,0.8808,2664.2,2663.8,3.75391]
[1727419212313,0.8808,2664.2,2664.0,3.75374]
[1727419212631,0.8808,2664.6,2664.2,3.75334]
[1727419212922,0.8808,2664.6,2664.3,3.75322]
[1727419213076,0.8808,2664.6,2664.4,3.75309]
[1727419213282,0.8808,2665.0,2664.5,3.75304]
[1727419213480,0.8808,2665.0,2664.2,0.8079]
[1727419213681,0.8808,2665.0,2664.3,3.75326]
[1727419213892,0.8808,2665.0,2664.5,3.75297]
[1727419214419,0.8808,2664.8,2664.3,3.75329]
[1727419214579,3.75278,2664.7,2664.1,3.75351]
[1727419214785,4.63358,2664.7,2664.1,3.75351]
[1727419215196,0.8808,2664.7,2664.2,3.75210914]
[1727419215721,0.8808,2664.7,2664.3,3.75332]
[1727419218523,0.89,2664.6,2663.9,3.75384]
[1727419218820,0.89,2664.3,2663.7,11.09412]
[1727419218999,0.89,2664.3,2663.7,3.75412]
[1727419219000,0.89,2664.2,2663.7,3.75412]
[1727419219517,0.89,2664.2,2663.4,0.0653705]
[1727419219518,0.89,2664.1,2663.4,0.0653705]
[1727419219836,3.75269,2664.8,2663.3,3.7547]
[1727419219837,4.64392,2663.9,2663.3,3.7547]
[1727419220126,0.89,2663.9,2663.4,3.75459]
[1727419220295,0.89,2663.9,2663.1,0.868]
[1727419220296,3.75404,2663.8,2663.2,3.75485]
[1727419220488,0.89,2663.7,2663.2,3.75485]
[1727419220906,0.89,2663.7,2663.2,3.75477]
[1727419221426,0.89,2663.7,2663.4,3.7545]
[1727419222099,0.89,2663.7,2663.4,7.509]
[1727419222295,0.89,2663.7,2663.5,3.75441]
[1727419222621,0.89,2664.1,2663.6,3.75431]
[1727419222789,1.265351,2664.1,2663.6,3.75431]